bitfinex/quotes_BTCUSD_20250623
["timestamp","ask_amount","ask_price","bid_price","bid_amount"]
[1750692906507,0.74095811,101900.0,101890.0,0.38090451]
[1750692906737,0.74095811,101900.0,101890.0,0.5218184]
[1750692906950,0.74095811,101900.0,101890.0,0.5537184]
[1750692907164,0.35038253,101900.0,101890.0,0.57334673]
[1750692907377,0.74096022,101900.0,101890.0,0.57334683]
[1750692907645,0.74096022,101900.0,101890.0,0.33779939]
[1750692907859,0.74096022,101900.0,101890.0,0.27509939]
[1750692908292,0.73996022,101900.0,101890.0,0.27509939]
[1750692908508,0.7317681,101900.0,101890.0,0.27509939]
[1750692908733,0.74096231,101900.0,101890.0,0.27509939]
[1750692908943,0.73996231,101900.0,101890.0,0.1748]
[1750692909365,0.35038462,101900.0,101890.0,0.1748]
[1750692909569,0.74096231,101900.0,101890.0,0.42171901]
[1750692909788,0.35038462,101900.0,101890.0,0.56213261]
[1750692910002,0.35038448,101900.0,101890.0,0.58176056]
[1750692911086,0.74096217,101900.0,101890.0,0.5523184]
[1750692911298,0.74096217,101900.0,101890.0,0.57194654]
[1750692911518,0.74096217,101900.0,101890.0,0.56213252]
[1750692911974,0.74096288,101900.0,101890.0,0.57194644]
[1750692912185,0.74096288,101900.0,101890.0,0.54250381]
[1750692912409,0.74096288,101900.0,101890.0,0.3677039]
[1750692912620,0.74096288,101900.0,101890.0,0.60239821]
[1750692912801,0.74096288,101900.0,101890.0,0.38647939]
[1750692913060,0.74096288,101900.0,101890.0,0.34721831]
[1750692913270,0.74096288,101900.0,101890.0,0.61481243]
[1750692913483,0.74096288,101900.0,101890.0,0.61481252]
[1750692913700,0.74096288,101900.0,101890.0,0.60499831]
[1750692913915,0.74096288,101900.0,101890.0,0.61481252]
[1750692914365,0.74096288,101900.0,101890.0,0.62462664]
[1750692914581,0.74096288,101900.0,101890.0,0.61481252]
[1750692915202,0.74096288,101900.0,101890.0,0.60499831]
[1750692915601,0.74096578,101900.0,101890.0,0.60499831]
[1750692915794,0.74096578,101900.0,101890.0,0.61481233]
[1750692916219,0.74096578,101900.0,101890.0,0.61481252]
[1750692916434,0.74096578,101900.0,101890.0,0.62462654]
[1750692916639,0.74096578,101900.0,101890.0,0.63444066]
[1750692917052,0.74096578,101900.0,101890.0,0.62462664]
[1750692917475,0.74096578,101900.0,101890.0,0.63444047]
[1750692917907,0.74096578,101900.0,101890.0,0.63444066]
[1750692918215,0.74096578,101900.0,101890.0,0.63444008]
[1750692918422,0.74096578,101900.0,101890.0,0.6344396]
[1750692918620,0.74096846,101900.0,101890.0,0.6344396]
[1750692921333,0.7317681,101900.0,101890.0,0.6344396]
[1750692921545,0.74097157,101900.0,101890.0,0.6344396]
[1750692922231,0.74097206,101900.0,101890.0,0.6344396]
[1750692922689,0.01039437,101900.0,101890.0,0.6344396]
[1750692922911,0.00119041,101900.0,101890.0,0.6344396]
[1750692923597,0.3917681,101900.0,101890.0,0.6344396]
[1750692925368,0.00119041,101900.0,101890.0,0.6344396]
[1750692925616,0.40344374,101910.0,101900.0,0.2894103]
[1750692925959,0.41310818,101910.0,101900.0,0.38970969]
[1750692926393,0.40390397,101910.0,101900.0,0.38970969]
[1750692926872,0.01332628,101910.0,101900.0,0.38970969]
[1750692927102,0.00327064,101910.0,101900.0,0.78028738]
[1750692927559,0.00327064,101910.0,101900.0,0.38970969]
[1750692928320,0.00327064,101910.0,101900.0,0.79482823]
[1750692928748,0.00327064,101910.0,101900.0,0.82632323]
[1750692928960,0.00327064,101910.0,101900.0,0.82732323]
[1750692929404,0.00327064,101910.0,101900.0,0.46683411]
[1750692929620,0.00327064,101910.0,101900.0,0.37144796]
[1750692929839,1.17212602,101910.0,101900.0,0.003]
[1750692930045,1.20473432,101910.0,101900.0,0.003]
[1750692930260,1.20473432,101910.0,101900.0,0.17736]
[1750692931127,1.20473432,101910.0,101900.0,0.17436]
[1750692931350,0.42657894,101910.0,101900.0,0.17436]
[1750692931556,1.20973432,101910.0,101900.0,0.17436]
[1750692931762,1.17090643,101910.0,101900.0,0.17436]
[1750692932194,0.34,101900.0,101890.0,0.29033114]
[1750692932401,0.73057769,101900.0,101890.0,0.20742]
[1750692933020,0.73057769,101900.0,101890.0,0.0331]
[1750692933249,0.73976697,101900.0,101890.0,0.20742]
[1750692934123,0.73976697,101900.0,101890.0,0.17432]
[1750692934338,0.78726697,101900.0,101870.0,0.11318]
[1750692934567,0.0322,101890.0,101880.0,0.17428]
[1750692934785,0.42277769,101890.0,101870.0,0.16359939]
[1750692934999,0.42277769,101890.0,101850.0,0.66521895]
[1750692935000,3.778815,101870.0,101850.0,0.0625]
[1750692935212,0.0418841,101870.0,101850.0,0.34689775]
[1750692935422,0.34918423,101870.0,101850.0,0.33707939]
[1750692935631,0.38168421,101870.0,101850.0,0.53344512]
[1750692935846,0.34,101870.0,101850.0,0.55308174]
[1750692936087,0.34,101870.0,101850.0,0.57271787]
[1750692936300,0.73057769,101870.0,101860.0,0.37236451]
[1750692936507,0.73457769,101870.0,101860.0,0.36254731]
[1750692936718,0.73457769,101870.0,101860.0,0.34043939]
[1750692936926,0.73457769,101870.0,101860.0,0.27453939]
[1750692937146,0.76587769,101870.0,101850.0,9.041e-05]
[1750692937384,0.3753,101870.0,101860.0,0.17428]
[1750692937596,3.778815,101860.0,101850.0,9.041e-05]
[1750692937810,0.39057769,101860.0,101850.0,9.041e-05]
[1750692938449,0.49567035,101870.0,101850.0,0.27217587]
[1750692938669,0.52697035,101870.0,101850.0,0.03289041]
[1750692938890,0.51997035,101870.0,101850.0,0.03289041]
[1750692939346,0.002,101860.0,101850.0,9.041e-05]
[1750692939562,0.87727035,101860.0,101850.0,9.041e-05]
[1750692939779,4.65408535,101860.0,101850.0,9.041e-05]
[1750692940674,4.82832535,101860.0,101850.0,9.041e-05]
[1750692941345,4.82932535,101860.0,101850.0,9.041e-05]
[1750692942186,4.83132535,101860.0,101850.0,9.041e-05]
[1750692942416,4.65708535,101860.0,101850.0,9.041e-05]
[1750692942686,0.84162274,101860.0,101850.0,9.041e-05]
[1750692942914,0.35295239,101860.0,101850.0,9.041e-05]
[1750692943638,0.84162274,101860.0,101850.0,9.041e-05]
[1750692943863,0.84162274,101860.0,101850.0,0.03179041]
[1750692943864,0.35295239,101860.0,101850.0,0.03179041]
[1750692944093,0.35295239,101860.0,101850.0,0.26917587]
[1750692944297,0.35295239,101860.0,101850.0,0.37929333]
[1750692944510,0.343,101860.0,101850.0,0.56331139]
[1750692944724,0.343,101860.0,101850.0,0.58294694]
[1750692944937,0.343,101860.0,101850.0,0.56331139]
[1750692945338,0.343,101860.0,101850.0,0.57312936]
[1750692945554,0.343,101860.0,101850.0,0.56331149]
[1750692945964,0.35304777,101860.0,101850.0,0.3374898]
[1750692946378,0.84171812,101860.0,101850.0,0.55349342]
[1750692946586,0.35304777,101860.0,101850.0,0.55349342]
[1750692946813,0.343,101860.0,101850.0,0.54367526]
[1750692947246,0.343,101860.0,101850.0,0.56331129]
[1750692947466,0.343,101860.0,101850.0,0.55349342]
[1750692947668,0.343,101860.0,101850.0,0.55349362]
[1750692947906,0.343,101860.0,101850.0,0.54367536]
[1750692948109,0.343,101860.0,101850.0,0.55349362]
[1750692948318,0.343,101860.0,101850.0,0.54367536]
[1750692948771,0.343,101860.0,101850.0,0.38911159]
[1750692948986,0.003,101860.0,101850.0,0.57304927]
[1750692949916,0.003,101860.0,101850.0,0.96587368]
[1750692950133,0.003,101860.0,101850.0,1.18991368]
[1750692950366,0.003,101860.0,101850.0,0.70124333]
[1750692951023,0.48867035,101890.0,101880.0,0.04111546]
[1750692951244,0.48867035,101900.0,101880.0,0.55301941]
[1750692951456,0.48867035,101900.0,101880.0,0.56283439]
[1750692951687,0.48867035,101900.0,101880.0,0.61275372]
[1750692951900,0.48867035,101900.0,101880.0,0.60293893]
[1750692952118,0.48867035,101900.0,101880.0,0.61275382]
[1750692952342,0.48867035,101900.0,101880.0,0.60293941]
[1750692952558,0.82867035,101890.0,101880.0,0.35559939]
[1750692952787,0.82867035,101890.0,101880.0,0.57153941]
[1750692952997,0.82867035,101890.0,101880.0,0.6029396]
[1750692953203,0.82867035,101890.0,101880.0,0.62256995]
[1750692953408,0.34,101890.0,101880.0,0.63238503]
[1750692953621,0.34,101890.0,101880.0,0.6029396]
[1750692953849,0.34,101890.0,101880.0,0.39681485]
[1750692954063,0.34,101890.0,101880.0,0.6029395]
[1750692954270,0.34,101890.0,101880.0,0.39681485]
[1750692954430,0.342,101890.0,101880.0,0.39681485]
[1750692954633,0.342,101890.0,101880.0,0.38699939]
[1750692954836,0.83067035,101890.0,101880.0,0.35559939]
[1750692955420,0.83167035,101890.0,101880.0,0.35559939]
[1750692955628,0.83167035,101890.0,101880.0,0.32429939]
[1750692956242,0.83167035,101890.0,101880.0,0.224]
[1750692956726,0.86357035,101890.0,101880.0,0.174]
[1750692956935,3.778815,101880.0,101860.0,0.0634]
[1750692957197,0.48867035,101870.0,101860.0,0.35607939]
[1750692957466,0.48867035,101870.0,101860.0,0.25578]
[1750692957933,0.48867035,101870.0,101850.0,0.25985631]
[1750692958187,0.48857707,101870.0,101850.0,0.60367203]
[1750692958417,0.48857707,101870.0,101860.0,0.003]
[1750692959091,0.48857707,101870.0,101850.0,0.59385396]
[1750692959551,0.48867035,101860.0,101850.0,0.3906698]
[1750692959798,0.82867035,101860.0,101850.0,0.3591698]
[1750692960035,0.82867035,101860.0,101850.0,0.57517342]
[1750692960287,0.34,101860.0,101850.0,0.60677342]
[1750692960506,0.34,101860.0,101850.0,0.59395526]
[1750692961125,0.34,101860.0,101850.0,0.59495536]
[1750692961330,0.34,101860.0,101850.0,0.39858816]
[1750692961549,0.34,101860.0,101850.0,0.40158816]
[1750692961780,0.34,101860.0,101850.0,0.61759178]
[1750692962186,0.34,101860.0,101850.0,0.62740985]
[1750692962391,0.34,101860.0,101850.0,0.59795536]
[1750692962604,0.34,101860.0,101850.0,0.60777362]
[1750692963007,0.34,101860.0,101850.0,0.62740975]
[1750692963256,0.48867035,101870.0,101850.0,0.61759081]
[1750692963477,0.34,101870.0,101860.0,0.26816512]
[1750692963692,0.34,101870.0,101860.0,0.27798213]
[1750692963844,0.34,101870.0,101860.0,0.28779904]
[1750692964085,0.34,101870.0,101860.0,0.07181739]
[1750692964275,0.34,101870.0,101860.0,0.062]
[1750692964652,0.34916372,101870.0,101860.0,0.062]
[1750692965258,0.34916372,101870.0,101860.0,0.063]
[1750692965451,0.34905694,101870.0,101860.0,0.063]
[1750692965857,0.83772729,101870.0,101860.0,0.001]
[1750692966679,0.34905694,101870.0,101860.0,0.001]
[1750692966911,0.34905694,101870.0,101860.0,0.07341739]
[1750692967114,0.34905694,101870.0,101860.0,0.0636]
[1750692967528,0.34905694,101870.0,101860.0,0.07341739]
[1750692967733,0.34905694,101870.0,101860.0,0.27958261]
[1750692967954,0.34905694,101870.0,101860.0,0.26976531]
[1750692968164,0.34905694,101870.0,101860.0,0.0636]
[1750692968376,0.34905694,101870.0,101860.0,0.07341739]
[1750692968591,0.34905694,101870.0,101860.0,0.0636]
[1750692969200,0.83772729,101870.0,101860.0,0.0636]
[1750692969813,0.83772729,101870.0,101860.0,0.26976522]
[1750692970014,0.83772729,101870.0,101860.0,0.25994792]
[1750692970163,0.83772729,101870.0,101860.0,0.26976531]
[1750692970606,0.34905694,101870.0,101860.0,0.0636]
[1750692970810,0.34905694,101870.0,101860.0,0.26976512]
[1750692971011,0.34905694,101870.0,101860.0,0.27958203]
[1750692971261,0.33989322,101870.0,101860.0,0.27958213]
[1750692971393,0.33989322,101870.0,101860.0,0.28939904]
[1750692971828,0.33989322,101870.0,101860.0,0.27958213]
[1750692972032,0.33989322,101870.0,101860.0,0.25994792]
[1750692972259,0.43106594,101890.0,101870.0,0.0641]
[1750692972463,3.778815,101880.0,101870.0,0.2067]
[1750692972667,0.52132059,101880.0,101870.0,0.2067]
[1750692973106,0.52132059,101880.0,101870.0,0.0641]
[1750692973317,0.34,101870.0,101860.0,0.44402502]
[1750692973515,0.34,101870.0,101860.0,0.46365932]
[1750692973760,0.34,101870.0,101860.0,0.45384241]
[1750692974180,0.34,101870.0,101860.0,0.45384261]
[1750692974405,0.34,101870.0,101860.0,0.23786]
[1750692974615,0.82867035,101870.0,101860.0,0.20666]
[1750692974786,0.82867035,101870.0,101860.0,0.25849469]
[1750692975012,0.34917307,101870.0,101860.0,0.46465971]
[1750692975141,0.34,101870.0,101860.0,0.47447672]
[1750692975359,0.34,101870.0,101860.0,0.58459283]
[1750692975559,0.34,101870.0,101860.0,0.58459302]
[1750692975777,0.34,101870.0,101860.0,0.58455244]
[1750692975984,0.34,101870.0,101860.0,0.57455186]
[1750692976795,0.39080628,101880.0,101870.0,0.20614488]
[1750692977005,0.76346965,101880.0,101870.0,0.23734508]
[1750692977209,0.76346965,101880.0,101870.0,0.0312]
[1750692977637,0.76346965,101880.0,101860.0,0.53201861]
[1750692977844,0.73998045,101880.0,101870.0,0.0312]
[1750692978295,0.83869203,101880.0,101870.0,0.0312]
[1750692978506,0.83869203,101880.0,101870.0,0.0262]
[1750692978718,0.83869203,101880.0,101860.0,0.27401939]
[1750692978913,0.48851786,101870.0,101850.0,0.21609384]
[1750692979141,0.48851786,101870.0,101860.0,0.17368]
[1750692979350,0.49769156,101870.0,101860.0,0.17368]
[1750692980399,0.48851786,101870.0,101860.0,0.17368]
[1750692980811,0.48851786,101870.0,101860.0,0.17468]
[1750692981031,0.87069461,101870.0,101860.0,0.001]
[1750692981679,0.34917675,101870.0,101860.0,0.001]
[1750692981883,0.83769461,101870.0,101860.0,0.001]
[1750692983531,0.34917675,101870.0,101860.0,0.36846461]
[1750692983796,0.34917675,101870.0,101860.0,0.37828171]
[1750692984232,0.34,101870.0,101860.0,0.38809872]
[1750692984434,0.34,101870.0,101860.0,0.39791563]
[1750692984636,0.34,101870.0,101860.0,0.37828171]
[1750692984840,0.34,101870.0,101860.0,0.38809872]
[1750692985040,0.34,101870.0,101860.0,0.16229939]
[1750692985253,0.34918816,101870.0,101860.0,0.30545939]
[1750692986278,0.34,101870.0,101860.0,0.30545939]
[1750692986475,0.34919811,101870.0,101860.0,0.51162461]
[1750692986693,0.34919811,101870.0,101860.0,0.54282461]
[1750692986896,0.3491984,101870.0,101860.0,0.54282461]
[1750692987116,0.3491984,101870.0,101860.0,0.33665939]
[1750692987909,0.3491984,101870.0,101860.0,0.23636]
[1750692988124,0.83771626,101870.0,101860.0,0.23636]
[1750692988566,0.83771626,101870.0,101860.0,0.001]
[1750692988785,4.7145812,101870.0,101860.0,0.001]
[1750692989000,4.68698338,101870.0,101860.0,0.001]
[1750692989223,4.71458327,101870.0,101860.0,0.001]
[1750692989437,4.71458327,101870.0,101850.0,9.041e-05]
[1750692989688,0.34,101860.0,101850.0,9.041e-05]
[1750692989903,0.83771785,101860.0,101850.0,9.041e-05]
[1750692990998,0.00919999,101860.0,101850.0,0.00109041]
[1750692991210,0.34919999,101860.0,101850.0,0.00109041]
[1750692991436,0.83771785,101860.0,101850.0,0.00109041]
[1750692993136,0.34919999,101860.0,101850.0,0.03289041]
[1750692994038,0.34919999,101860.0,101850.0,0.03141041]
[1750692994502,0.34,101860.0,101850.0,0.03141041]
[1750692995815,0.82851786,101860.0,101840.0,0.20568]
[1750692996039,0.8921463,101860.0,101840.0,0.20581819]
[1750692996244,0.83771187,101860.0,101840.0,0.20581819]
[1750692996446,0.86125077,101860.0,101840.0,0.41202285]
[1750692996651,0.86125077,101860.0,101840.0,0.42184207]
[1750692996856,0.86125077,101860.0,101840.0,0.20581819]
[1750692997068,0.8612502,101860.0,101840.0,0.44412364]
[1750692997316,0.83771187,101860.0,101840.0,0.45394277]
[1750692997492,0.83971187,101860.0,101840.0,0.46376161]
[1750692997692,0.83971132,101860.0,101840.0,0.4637617]
[1750692997906,0.83971132,101860.0,101850.0,0.0642]
[1750692998109,0.35119346,101860.0,101850.0,0.0642]
[1750692999206,0.34919346,101860.0,101850.0,0.07401836]
[1750692999339,0.35119346,101860.0,101850.0,0.0642]
[1750692999534,0.35319346,101860.0,101850.0,0.0642]
[1750692999944,0.35119346,101860.0,101850.0,0.27038556]
[1750693000267,0.35319346,101860.0,101850.0,0.0642]
[1750693000678,0.35319346,101860.0,101850.0,0.0321]
[1750693001019,0.84171132,101860.0,101850.0,0.0321]
[1750693002301,0.84171132,101860.0,101850.0,0.065]
[1750693002715,0.35319346,101860.0,101850.0,0.065]
[1750693003130,0.35319346,101860.0,101850.0,0.07481836]
[1750693003330,0.3531927,101860.0,101850.0,0.07481836]
[1750693003541,0.3531927,101860.0,101850.0,0.065]
[1750693005250,0.344,101860.0,101850.0,0.07481836]
[1750693005461,0.344,101860.0,101850.0,0.065]
[1750693006361,0.73494616,101860.0,101850.0,0.065]
[1750693006584,0.74413582,101860.0,101850.0,0.065]
[1750693007261,0.35318966,101860.0,101850.0,0.065]
[1750693007522,0.74413582,101860.0,101850.0,0.065]
[1750693009100,0.74413582,101860.0,101840.0,0.23781819]
[1750693009101,0.76574616,101860.0,101840.0,0.23781819]
[1750693009310,0.39094616,101850.0,101840.0,0.23781819]
[1750693009548,0.39094616,101850.0,101840.0,0.24763751]
[1750693009988,0.39094616,101850.0,101840.0,0.4440238]
[1750693010230,0.39094616,101850.0,101840.0,0.27054389]
[1750693010460,0.39094616,101850.0,101840.0,0.23757819]
[1750693011090,0.39094616,101850.0,101840.0,0.24739751]
[1750693011531,0.39094616,101850.0,101840.0,0.23757819]
[1750693011721,0.39094616,101850.0,101840.0,0.06433819]
[1750693011916,0.39094616,101850.0,101840.0,0.03123819]
[1750693012531,0.34,101860.0,101840.0,0.03123819]
[1750693012727,0.39094616,101850.0,101840.0,0.06393819]
[1750693013056,0.39294616,101850.0,101840.0,0.03123819]
[1750693013276,1.12589232,101850.0,101840.0,0.03123819]
[1750693013484,4.93742395,101850.0,101840.0,0.00013819]
[1750693013914,4.54447779,101850.0,101840.0,0.00013819]
[1750693014325,4.96762395,101850.0,101840.0,0.00013819]
[1750693014919,4.57667779,101850.0,101840.0,0.00013819]
[1750693015130,4.54647864,101850.0,101840.0,0.00013819]
[1750693015985,4.18095263,101850.0,101840.0,0.00013819]
[1750693016196,4.1906949,101850.0,101840.0,0.00013819]
[1750693017101,3.79974874,101850.0,101840.0,0.06413819]
[1750693017313,0.01174227,101850.0,101840.0,0.06413819]
[1750693017551,0.40268843,101850.0,101840.0,0.06413819]
[1750693017976,0.41188439,101850.0,101840.0,0.03313819]
[1750693018394,0.41188439,101850.0,101840.0,0.00013819]
[1750693018834,4.63558739,101850.0,101840.0,0.00013819]
[1750693020928,4.79450766,101850.0,101840.0,0.00013819]
[1750693021146,5.35758766,101850.0,101840.0,0.00013819]
[1750693021364,5.91102599,101850.0,101840.0,0.00013819]
[1750693021580,5.96039776,101850.0,101840.0,0.00013819]
[1750693022014,5.99244718,101850.0,101840.0,0.00013819]
[1750693022471,6.1928777,101850.0,101840.0,0.00013819]
[1750693022895,6.1968777,101850.0,101840.0,0.00013819]
[1750693023584,5.67280107,101850.0,101840.0,0.00013819]
[1750693024287,5.45040107,101850.0,101840.0,0.00013819]
[1750693024495,5.67246631,101850.0,101840.0,0.00013819]
[1750693025164,5.18330489,101850.0,101840.0,0.00013819]
[1750693026053,4.46091133,101850.0,101840.0,0.00013819]
[1750693026275,5.14645275,101850.0,101840.0,0.00013819]
[1750693026507,4.84057922,101850.0,101840.0,0.00013819]
[1750693026725,5.01357922,101850.0,101840.0,0.00013819]
[1750693026947,4.98415769,101850.0,101840.0,0.00013819]
[1750693028064,4.37631518,101850.0,101840.0,0.03313819]
[1750693028278,4.83542718,101850.0,101840.0,0.06593819]
[1750693028492,4.49542718,101850.0,101840.0,0.06593819]
[1750693028923,4.49142718,101850.0,101840.0,0.06593819]
[1750693029153,4.48342718,101850.0,101840.0,0.03313819]
[1750693029380,5.02036742,101850.0,101840.0,0.00013819]
[1750693029596,4.97536827,101850.0,101840.0,0.00013819]
[1750693029811,4.94526827,101850.0,101840.0,0.00013819]
[1750693030049,4.762216,101850.0,101840.0,0.00013819]
[1750693030264,4.74767515,101850.0,101840.0,0.00013819]
[1750693030492,4.62383854,101850.0,101840.0,0.03173819]
[1750693030712,4.60451066,101850.0,101840.0,0.00013819]
[1750693030927,4.80841066,101850.0,101840.0,0.00013819]
[1750693031574,4.80703866,101850.0,101840.0,0.00013819]
[1750693031829,4.80703998,101850.0,101840.0,0.00013819]
[1750693032066,4.63403998,101850.0,101840.0,0.03103819]
[1750693032293,4.63403997,101850.0,101840.0,0.06353819]
[1750693032523,4.64404869,101850.0,101840.0,0.06353819]
[1750693032989,0.38653672,101850.0,101840.0,0.06353819]
[1750693033229,0.01700872,101850.0,101840.0,0.06353819]
[1750693033468,0.01700872,101850.0,101840.0,0.26974399]
[1750693033701,0.01700872,101850.0,101840.0,0.27956321]
[1750693033939,0.01700872,101850.0,101840.0,0.29920127]
[1750693034169,0.01700872,101850.0,101840.0,0.27956321]
[1750693034413,0.007,101850.0,101840.0,0.28938214]
[1750693034648,0.007,101850.0,101840.0,0.39950017]
[1750693034871,0.342,101850.0,101840.0,0.16383758]
[1750693035105,0.343,101850.0,101840.0,0.36022406]
[1750693035325,0.343,101850.0,101840.0,0.37986221]
[1750693035538,0.343,101850.0,101840.0,0.38968085]
[1750693035763,0.341,101850.0,101840.0,0.38968085]
[1750693036181,0.341,101850.0,101840.0,0.39068085]
[1750693036822,0.341,101850.0,101840.0,0.38086241]
[1750693037242,0.341,101850.0,101840.0,0.39068125]
[1750693037450,0.341,101850.0,101840.0,0.40050008]
[1750693037680,0.001,101850.0,101840.0,0.41031872]
[1750693038360,0.001,101850.0,101840.0,0.40050018]
[1750693038582,0.001,101850.0,101840.0,0.39068134]
[1750693038810,0.001,101850.0,101840.0,0.40049998]
[1750693039045,0.001,101850.0,101840.0,0.9387014]
[1750693039576,0.001,101850.0,101840.0,0.44953998]
[1750693039812,0.001,101850.0,101840.0,0.9387014]
[1750693040243,0.001,101850.0,101840.0,0.61256134]
[1750693040464,0.001,101850.0,101840.0,0.62237998]
[1750693040677,0.001,101850.0,101840.0,0.62233998]
[1750693041121,0.001,101850.0,101840.0,1.1115014]
[1750693042400,0.001,101850.0,101840.0,0.62233998]
[1750693042605,0.001,101850.0,101840.0,1.1115014]
[1750693043505,0.001,101850.0,101840.0,0.62233998]
[1750693043919,0.001,101850.0,101840.0,0.52427041]
[1750693046352,0.001,101850.0,101840.0,0.91512473]
[1750693047005,0.001,101850.0,101840.0,0.98032473]
[1750693047902,0.001,101850.0,101840.0,0.58947041]
[1750693048118,0.001,101850.0,101840.0,0.98032473]
[1750693050822,0.001,101850.0,101840.0,0.58947041]
[1750693051021,0.001,101850.0,101840.0,0.98032473]
[1750693051947,0.001,101850.0,101840.0,0.58947041]
[1750693052151,0.001,101850.0,101840.0,0.98032473]
[1750693056227,0.001,101850.0,101840.0,0.36763041]
[1750693056419,0.001,101850.0,101840.0,0.58891041]
[1750693056864,0.001,101850.0,101840.0,0.97976473]
[1750693059573,0.001,101850.0,101840.0,0.58891041]
[1750693059778,0.001,101850.0,101840.0,0.97976473]
[1750693060901,0.001,101850.0,101840.0,0.75848473]
[1750693061171,0.001,101850.0,101840.0,0.97968473]
[1750693062280,0.45316932,101880.0,101860.0,0.27717628]
[1750693062487,0.44255698,101880.0,101870.0,0.17244]
[1750693063341,0.47355566,101880.0,101870.0,0.1724]
[1750693063542,0.49193125,101880.0,101870.0,0.1724]
[1750693063758,0.52245134,101880.0,101870.0,0.1724]
[1750693064169,4.46795634,101880.0,101870.0,0.1724]
[1750693064376,4.4679614,101880.0,101870.0,0.1724]
[1750693064580,0.4039,101870.0,101850.0,0.21598161]
[1750693064798,0.80394139,101870.0,101850.0,0.10029939]
[1750693065049,0.45505432,101860.0,101850.0,0.17236]
[1750693065911,0.45505432,101860.0,101830.0,0.34749739]
[1750693066132,0.42215432,101850.0,101840.0,0.22112]
[1750693066778,0.06559029,101860.0,101840.0,0.56690035]
[1750693066993,0.06559029,101860.0,101840.0,0.56974432]
[1750693066994,0.46563128,101860.0,101840.0,0.56974432]
[1750693067214,0.46563128,101860.0,101840.0,0.57956335]
[1750693067432,0.80563128,101860.0,101840.0,0.59920102]
[1750693067661,0.80363128,101860.0,101840.0,0.5893817]
[1750693067878,0.79644461,101860.0,101840.0,0.62980025]
[1750693068095,0.35127712,101860.0,101840.0,1.00101689]
[1750693068306,0.35127712,101860.0,101840.0,0.60034383]
[1750693068307,0.74213144,101860.0,101840.0,0.60034383]
[1750693068517,0.35127712,101860.0,101840.0,0.61016267]
[1750693068727,0.35127712,101860.0,101840.0,0.61998131]
[1750693068958,0.35127712,101860.0,101840.0,0.61016267]
[1750693069166,0.38257712,101860.0,101840.0,0.61016306]
[1750693069380,0.77343144,101860.0,101840.0,0.61016306]
[1750693070022,0.77343144,101860.0,101840.0,0.6199818]
[1750693070267,0.74213144,101860.0,101840.0,0.61016306]
[1750693070480,0.74213144,101860.0,101840.0,0.6199817]
[1750693070690,0.74213144,101860.0,101840.0,0.61998199]
[1750693070896,0.74213144,101860.0,101840.0,0.60034422]
[1750693071129,0.74213144,101860.0,101840.0,0.61998199]
[1750693071607,0.74213144,101860.0,101840.0,0.61016315]
[1750693071805,0.74213197,101860.0,101840.0,0.61998199]
[1750693072438,0.77473197,101860.0,101840.0,0.55992519]
[1750693072651,0.39085432,101850.0,101830.0,0.34774322]
[1750693072866,0.39085432,101850.0,101840.0,0.17224]
[1750693073081,0.45475432,101850.0,101830.0,0.32960176]
[1750693073288,0.45475432,101850.0,101840.0,0.17224]
[1750693074829,0.42345432,101850.0,101840.0,0.17224]
[1750693075480,0.42345432,101850.0,101840.0,0.18205932]
[1750693075705,0.42345432,101850.0,101840.0,0.17324]
[1750693075921,0.73094461,101860.0,101840.0,0.55526432]
[1750693076129,0.77323241,101860.0,101840.0,0.56508335]
[1750693076775,0.77323241,101860.0,101840.0,0.55526441]
[1750693076973,0.77523241,101860.0,101840.0,0.54544519]
[1750693077176,0.77523241,101860.0,101840.0,0.56508334]
[1750693077387,0.77523241,101860.0,101840.0,0.55526441]
[1750693077612,0.35127809,101860.0,101840.0,0.58472082]
[1750693077821,0.34209029,101860.0,101840.0,0.9755736]
[1750693078115,0.34209029,101860.0,101840.0,0.55526422]
[1750693078323,0.35128307,101860.0,101840.0,0.56408315]
[1750693078545,0.34209029,101860.0,101850.0,0.20618536]
[1750693078740,0.00209029,101860.0,101850.0,0.77075704]
[1750693078983,0.00209029,101860.0,101850.0,0.39953827]
[1750693079850,9.029e-05,101860.0,101850.0,0.79039259]
[1750693080059,0.00209029,101860.0,101850.0,0.79039259]
[1750693082722,0.00209029,101860.0,101850.0,1.27406182]
[1750693083351,9.029e-05,101860.0,101850.0,1.19578776]
[1750693085282,9.029e-05,101860.0,101850.0,1.19878776]
[1750693085728,9.029e-05,101860.0,101850.0,1.19778776]
[1750693085941,9.029e-05,101860.0,101850.0,0.80693344]
[1750693086151,9.029e-05,101860.0,101850.0,0.79539259]
[1750693086362,9.029e-05,101860.0,101850.0,0.62497827]
[1750693086592,9.029e-05,101860.0,101850.0,0.37508475]
[1750693086798,9.029e-05,101860.0,101850.0,0.6151605]
[1750693087204,9.029e-05,101860.0,101850.0,1.00601482]
[1750693090124,9.029e-05,101860.0,101850.0,1.41140999]
[1750693090539,9.029e-05,101860.0,101850.0,1.44091799]
[1750693091851,9.029e-05,101860.0,101850.0,1.73801799]
[1750693092577,9.029e-05,101860.0,101850.0,1.33262282]
[1750693092731,9.029e-05,101860.0,101850.0,1.30311482]
[1750693093136,9.029e-05,101860.0,101850.0,0.6918205]
[1750693093410,9.029e-05,101860.0,101850.0,1.30299482]
[1750693094193,9.029e-05,101860.0,101850.0,1.47352914]
[1750693094411,9.029e-05,101860.0,101850.0,1.70838999]
[1750693094821,9.029e-05,101860.0,101850.0,1.41128999]
[1750693095994,9.029e-05,101860.0,101850.0,1.02043567]
[1750693096487,9.029e-05,101860.0,101850.0,1.41128999]
[1750693098806,9.029e-05,101860.0,101850.0,1.44079899]
[1750693099845,9.029e-05,101860.0,101850.0,1.4507226]
[1750693100058,9.029e-05,101860.0,101850.0,1.44079899]
[1750693101018,9.029e-05,101860.0,101850.0,1.78079899]
[1750693102433,9.029e-05,101860.0,101850.0,1.56047899]
[1750693102643,9.029e-05,101860.0,101850.0,1.78063899]
[1750693102856,9.029e-05,101860.0,101850.0,1.79837172]
[1750693104048,9.029e-05,101860.0,101850.0,1.38974467]
[1750693104194,9.029e-05,101860.0,101850.0,1.00569482]
[1750693104381,9.029e-05,101860.0,101850.0,0.78557482]
[1750693104592,9.029e-05,101860.0,101850.0,1.00569482]
[1750693105862,9.029e-05,101860.0,101850.0,0.83401482]
[1750693106124,9.029e-05,101860.0,101850.0,1.00569482]
[1750693106541,0.01769034,101860.0,101850.0,1.00569482]
[1750693106769,9.029e-05,101860.0,101850.0,1.00569482]
[1750693107194,9.029e-05,101860.0,101850.0,0.97419482]
[1750693107406,9.029e-05,101860.0,101850.0,0.94209482]
[1750693107835,9.029e-05,101860.0,101850.0,0.32130282]
[1750693108052,0.03309029,101860.0,101850.0,0.5512006]
[1750693108256,0.03309029,101860.0,101850.0,0.56101828]